[Event "*** Titled Tuesday 3|2 Blitz"]
[Site "Chess.com"]
[Date "2016.09.06"]
[Round "4"]
[White "petrpalachev"]
[Black "mwpchess"]
[Result "1/2-1/2"]
[WhiteElo "2415"]
[BlackElo "2441"]
[TimeControl "180+2"]
[EndTime "11:51:04 PDT"]
[Termination "Game drawn by agreement"]

1. Nf3 {[%clk 0:02:55.4]} 1... Nf6 {[%clk 0:02:59.4]} 2. d4 {[%clk 0:02:52.7]}
2... e6 {[%clk 0:02:59.8]} 3. c4 {[%clk 0:02:54.1]} 3... d5 {[%clk 0:02:58.9]}
4. Nc3 {[%clk 0:02:54.7]} 4... dxc4 {[%clk 0:02:59.7]} 5. e4 {[%clk 0:02:55.5]}
5... Bb4 {[%clk 0:02:59.3]} 6. Bxc4 {[%clk 0:02:57.1]} 6... Nxe4 {[%clk
0:02:59.6]} 7. O-O {[%clk 0:02:58.7]} 7... Nxc3 {[%clk 0:02:58.5]} 8. bxc3
{[%clk 0:03:00.6]} 8... Be7 {[%clk 0:02:59.2]} 9. Ne5 {[%clk 0:02:58.3]} 9...
O-O {[%clk 0:02:59.4]} 10. Re1 {[%clk 0:02:54.2]} 10... Nc6 {[%clk 0:02:56]} 11.
Qg4 {[%clk 0:02:53.3]} 11... f5 {[%clk 0:02:40.8]} 12. Qf3 {[%clk 0:02:40.6]}
12... Nxe5 {[%clk 0:02:38.7]} 13. Rxe5 {[%clk 0:02:42.5]} 13... Kh8 {[%clk
0:02:39.1]} 14. Bf4 {[%clk 0:02:32.6]} 14... Bd6 {[%clk 0:02:39.3]} 15. Rae1
{[%clk 0:02:29.4]} 15... g5 {[%clk 0:02:32.6]} 16. Bd2 {[%clk 0:02:27.1]} 16...
Bxe5 {[%clk 0:02:30.5]} 17. Rxe5 {[%clk 0:02:27.6]} 17... Qf6 {[%clk 0:02:22.2]}
18. h4 {[%clk 0:02:19.6]} 18... g4 {[%clk 0:02:08.9]} 19. Qg3 {[%clk 0:02:13.4]}
19... Bd7 {[%clk 0:02:00.8]} 20. Bf4 {[%clk 0:02:01.7]} 20... Kg8 {[%clk
0:01:50.8]} 21. d5 {[%clk 0:01:54.4]} 21... Rae8 {[%clk 0:01:43]} 22. Qe3 {[%clk
0:01:50.5]} 22... exd5 {[%clk 0:01:33.1]} 23. Bxd5+ {[%clk 0:01:50.8]} 23... Kg7
{[%clk 0:01:18]} 24. Bxb7 {[%clk 0:01:34.3]} 24... Kg6 {[%clk 0:01:10.1]} 25.
Qd4 {[%clk 0:01:10.2]} 25... Rxe5 {[%clk 0:00:58.4]} 26. Bxe5 {[%clk 0:01:10.5]}
26... Qe7 {[%clk 0:00:58.3]} 27. Bxc7 {[%clk 0:00:41.7]} 27... Bc6 {[%clk
0:00:37.5]} 28. Bd6 {[%clk 0:00:26.5]} 28... Qxb7 {[%clk 0:00:38.2]} 29. Bxf8
{[%clk 0:00:26.8]} 29... Bxg2 {[%clk 0:00:39.1]} 30. Qd6+ {[%clk 0:00:19.6]}
30... Kf7 {[%clk 0:00:34.9]} 31. Bh6 {[%clk 0:00:19.1]} 31... Bh3 {[%clk
0:00:26.7]} 32. Qf8+ {[%clk 0:00:18.9]} 32... Kg6 {[%clk 0:00:25.8]} 33. Qg8+
{[%clk 0:00:06.6]} 33... Kf6 {[%clk 0:00:26.3]} 34. Bg5+ {[%clk 0:00:05.8]}
34... Ke5 {[%clk 0:00:25.7]} 35. Qe8+ {[%clk 0:00:06]} 35... Kd5 {[%clk
0:00:22.3]} 36. Qe3 {[%clk 0:00:02.9]} 36... Qb1+ {[%clk 0:00:21.2]} 37. Kh2
{[%clk 0:00:03.9]} 37... Qe4 {[%clk 0:00:21.9]} 38. Qxe4+ {[%clk 0:00:03.6]}
38... Kxe4 {[%clk 0:00:22.4]} 39. Kg3 {[%clk 0:00:05.1]} 39... Bf1 {[%clk
0:00:22.9]} 40. Bf6 {[%clk 0:00:06.2]} 40... h5 {[%clk 0:00:23.1]} 41. a4 {[%clk
0:00:07.5]} 41... f4+ {[%clk 0:00:23.2]} 42. Kh2 {[%clk 0:00:09.1]} 42... a6
{[%clk 0:00:23.8]} 43. a5 {[%clk 0:00:09.5]} 43... Bc4 {[%clk 0:00:24.4]} 44.
Bd4 {[%clk 0:00:09.7]} 44... Kf3 {[%clk 0:00:25]} 45. Kg1 {[%clk 0:00:10.4]}
45... g3 {[%clk 0:00:25.2]} 46. Bb6 {[%clk 0:00:09.5]} 46... g2 {[%clk
0:00:24.8]} 1/2-1/2

[Event "*** Titled Tuesday 3|2 Blitz"]
[Site "Chess.com"]
[Date "2016.09.06"]
[Round "4"]
[White "FairChess_on_YouTube"]
[Black "ilya261991"]
[Result "0-1"]
[WhiteElo "2692"]
[BlackElo "2476"]
[TimeControl "180+2"]
[EndTime "11:51:05 PDT"]
[Termination "ilya261991 won by resignation"]

1. e4 {[%clk 0:03:01.9]} 1... c5 {[%clk 0:03:00.2]} 2. Nf3 {[%clk 0:03:02.3]}
2... d6 {[%clk 0:03:01.2]} 3. d4 {[%clk 0:03:02.5]} 3... Nf6 {[%clk 0:03:02.2]}
4. Bb5+ {[%clk 0:03:01.6]} 4... Nbd7 {[%clk 0:03:01.4]} 5. O-O {[%clk
0:03:00.2]} 5... cxd4 {[%clk 0:02:57.9]} 6. Qxd4 {[%clk 0:03:00.8]} 6... e5
{[%clk 0:02:50.1]} 7. Qd3 {[%clk 0:02:58.8]} 7... h6 {[%clk 0:02:49.6]} 8. Nc3
{[%clk 0:02:57.9]} 8... Be7 {[%clk 0:02:46.5]} 9. Be3 {[%clk 0:02:58.7]} 9...
O-O {[%clk 0:02:46.8]} 10. a4 {[%clk 0:02:56.2]} 10... a6 {[%clk 0:02:40.5]} 11.
Bc4 {[%clk 0:02:56.8]} 11... Qc7 {[%clk 0:02:37.2]} 12. Nd2 {[%clk 0:02:46.9]}
12... Nc5 {[%clk 0:02:35.1]} 13. Qe2 {[%clk 0:02:47.4]} 13... Be6 {[%clk
0:02:25.4]} 14. Bxe6 {[%clk 0:02:45.3]} 14... Nxe6 {[%clk 0:02:10.9]} 15. a5
{[%clk 0:02:33.8]} 15... Rac8 {[%clk 0:02:08.8]} 16. Ra4 {[%clk 0:02:31.8]}
16... Nd4 {[%clk 0:01:50]} 17. Qd3 {[%clk 0:02:25.7]} 17... Nb5 {[%clk
0:01:48.3]} 18. Nxb5 {[%clk 0:02:20.3]} 18... axb5 {[%clk 0:01:48.3]} 19. Qxb5
{[%clk 0:02:11.6]} 19... Qxc2 {[%clk 0:01:48.9]} 20. Rfa1 {[%clk 0:02:10.1]}
20... Ng4 {[%clk 0:01:10.4]} 21. Nf1 {[%clk 0:02:11.1]} 21... Bg5 {[%clk
0:01:10.6]} 22. Ba7 {[%clk 0:02:09.3]} 22... Rc5 {[%clk 0:00:44.4]} 23. Bxc5
{[%clk 0:02:06.1]} 23... dxc5 {[%clk 0:00:46.3]} 24. h3 {[%clk 0:01:30.9]} 24...
Qxf2+ {[%clk 0:00:44.9]} 25. Kh1 {[%clk 0:01:32.2]} 25... Be3 {[%clk 0:00:39.3]}
26. Nxe3 {[%clk 0:01:30.2]} 26... Nxe3 {[%clk 0:00:39.5]} 27. Rg1 {[%clk
0:01:31.7]} 27... Rd8 {[%clk 0:00:36.1]} 28. Raa1 {[%clk 0:01:21.1]} 28... Rd2
{[%clk 0:00:33.1]} 29. Qxc5 {[%clk 0:01:18.6]} 29... Qg3 {[%clk 0:00:26.1]} 30.
Ra3 {[%clk 0:00:37.2]} 30... Rxg2 {[%clk 0:00:20.3]} 31. Qc8+ {[%clk 0:00:38.8]}
31... Kh7 {[%clk 0:00:20.4]} 32. Qf5+ {[%clk 0:00:40.1]} 32... Nxf5 {[%clk
0:00:19.6]} 33. Rxg3 {[%clk 0:00:41.2]} 33... Rxg3 {[%clk 0:00:19.6]} 34. exf5
{[%clk 0:00:42.5]} 34... Rxh3+ {[%clk 0:00:20.9]} 35. Kg2 {[%clk 0:00:43.9]}
35... Rb3 {[%clk 0:00:22.5]} 36. Rc1 {[%clk 0:00:43.7]} 36... Rxb2+ {[%clk
0:00:23.4]} 37. Kf3 {[%clk 0:00:45.4]} 37... Rb5 {[%clk 0:00:24.8]} 38. Rc7
{[%clk 0:00:46.5]} 38... f6 {[%clk 0:00:23.3]} 39. Ke4 {[%clk 0:00:46.4]} 39...
Rxa5 {[%clk 0:00:24.1]} 40. Rxb7 {[%clk 0:00:47.7]} 40... h5 {[%clk 0:00:23.4]}
41. Rb8 {[%clk 0:00:47.8]} 41... h4 {[%clk 0:00:24.3]} 42. Kf3 {[%clk 0:00:49]}
42... Ra4 {[%clk 0:00:25.1]} 43. Rb1 {[%clk 0:00:48.6]} 43... Rf4+ {[%clk
0:00:25.9]} 44. Kg2 {[%clk 0:00:48.7]} 44... Rxf5 {[%clk 0:00:27.3]} 45. Kh3
{[%clk 0:00:48.8]} 45... Rf4 {[%clk 0:00:27.6]} 46. Rg1 {[%clk 0:00:49.7]} 46...
g5 {[%clk 0:00:28.2]} 47. Rb1 {[%clk 0:00:51.3]} 47... Kg6 {[%clk 0:00:29.1]}
48. Rb8 {[%clk 0:00:52.8]} 48... Rf3+ {[%clk 0:00:30.3]} 49. Kg2 {[%clk
0:00:53]} 49... Rg3+ {[%clk 0:00:31.4]} 50. Kh2 {[%clk 0:00:54.7]} 50... Ra3
{[%clk 0:00:32.9]} 51. Rb5 {[%clk 0:00:55.4]} 51... g4 {[%clk 0:00:33.4]} 52.
Rb8 {[%clk 0:00:56.2]} 52... Ra2+ {[%clk 0:00:34.2]} 53. Kg1 {[%clk 0:00:57.6]}
53... h3 {[%clk 0:00:34.9]} 54. Rg8+ {[%clk 0:00:58.3]} 54... Kf5 {[%clk
0:00:35.8]} 55. Kh1 {[%clk 0:00:58.9]} 55... Kf4 {[%clk 0:00:34.9]} 56. Kg1
{[%clk 0:01:00.2]} 56... f5 {[%clk 0:00:34.8]} 57. Kf1 {[%clk 0:01:01]} 57... h2
{[%clk 0:00:35.2]} 58. Rh8 {[%clk 0:01:01.9]} 58... h1=Q+ {[%clk 0:00:35.6]} 59.
Rxh1 {[%clk 0:01:02.2]} 59... Ra1+ {[%clk 0:00:37.2]} 60. Kg2 {[%clk 0:01:03.6]}
60... Rxh1 {[%clk 0:00:38.8]} 61. Kxh1 {[%clk 0:01:04.9]} 61... Ke3 {[%clk
0:00:39.6]} 62. Kg2 {[%clk 0:01:06.1]} 62... e4 {[%clk 0:00:40.6]} 63. Kg3
{[%clk 0:01:07.3]} 63... f4+ {[%clk 0:00:41.4]} 64. Kxg4 {[%clk 0:01:08.6]}
64... f3 {[%clk 0:00:42.8]} 0-1

[Event "*** Titled Tuesday 3|2 Blitz"]
[Site "Chess.com"]
[Date "2016.09.06"]
[Round "4"]
[White "CraiggoryC"]
[Black "GremioPrudente"]
[Result "1-0"]
[WhiteElo "2020"]
[BlackElo "2014"]
[TimeControl "180+2"]
[EndTime "11:51:14 PDT"]
[Termination "CraiggoryC won on time"]

1. e4 {[%clk 0:03:01.9]} 1... e6 {[%clk 0:02:59.9]} 2. d4 {[%clk 0:03:02.2]}
2... d5 {[%clk 0:03:00.7]} 3. Nd2 {[%clk 0:03:01.2]} 3... Nf6 {[%clk 0:03:01.3]}
4. e5 {[%clk 0:03:02.2]} 4... Nfd7 {[%clk 0:03:02.4]} 5. c3 {[%clk 0:03:03.9]}
5... c5 {[%clk 0:03:03.9]} 6. Ngf3 {[%clk 0:03:05.6]} 6... Nc6 {[%clk
0:03:02.6]} 7. Bd3 {[%clk 0:03:07.1]} 7... Be7 {[%clk 0:03:02.1]} 8. O-O {[%clk
0:03:07.5]} 8... O-O {[%clk 0:03:03]} 9. Re1 {[%clk 0:03:06.6]} 9... cxd4 {[%clk
0:03:00.1]} 10. cxd4 {[%clk 0:03:07.5]} 10... Qb6 {[%clk 0:03:01]} 11. Nf1
{[%clk 0:03:05]} 11... f5 {[%clk 0:02:58.1]} 12. exf6 {[%clk 0:03:04.2]} 12...
Nxf6 {[%clk 0:02:58.5]} 13. a3 {[%clk 0:02:57]} 13... a5 {[%clk 0:02:58.2]} 14.
b3 {[%clk 0:02:55.7]} 14... Bd7 {[%clk 0:02:53.1]} 15. Bb2 {[%clk 0:02:53.8]}
15... Rae8 {[%clk 0:02:51.9]} 16. Ng3 {[%clk 0:02:51.6]} 16... Bd6 {[%clk
0:02:50.1]} 17. Bc2 {[%clk 0:02:45.4]} 17... g6 {[%clk 0:02:38.3]} 18. Ne5
{[%clk 0:01:53.2]} 18... Qc7 {[%clk 0:02:20.9]} 19. Rc1 {[%clk 0:01:49.4]} 19...
Qb8 {[%clk 0:02:04.6]} 20. Qd2 {[%clk 0:01:27.2]} 20... Bxe5 {[%clk 0:01:56]}
21. dxe5 {[%clk 0:01:27.9]} 21... Ng4 {[%clk 0:01:56.6]} 22. Re2 {[%clk
0:01:09.2]} 22... Ngxe5 {[%clk 0:01:53.6]} 23. Rce1 {[%clk 0:00:23.3]} 23... Nf7
{[%clk 0:01:50.9]} 24. h4 {[%clk 0:00:20.8]} 24... Qd6 {[%clk 0:01:35.2]} 25. h5
{[%clk 0:00:21.8]} 25... e5 {[%clk 0:01:30.2]} 26. hxg6 {[%clk 0:00:18.6]} 26...
hxg6 {[%clk 0:01:30.9]} 27. b4 {[%clk 0:00:16.9]} 27... axb4 {[%clk 0:01:29.6]}
28. axb4 {[%clk 0:00:18]} 28... e4 {[%clk 0:01:22.7]} 29. b5 {[%clk 0:00:18.7]}
29... Nce5 {[%clk 0:01:22.9]} 30. Qc3 {[%clk 0:00:16.7]} 30... Rc8 {[%clk
0:01:20.4]} 31. Qb3 {[%clk 0:00:16]} 31... Nc4 {[%clk 0:01:12.6]} 32. Bxe4
{[%clk 0:00:15]} 32... Nxb2 {[%clk 0:01:06.4]} 33. Bxd5 {[%clk 0:00:14.5]} 33...
Qf6 {[%clk 0:00:27.2]} 34. Ne4 {[%clk 0:00:14.3]} 34... Qc3 {[%clk 0:00:25.2]}
35. Nxc3 {[%clk 0:00:10.9]} 35... Nd3 {[%clk 0:00:22.6]} 36. Ne4 {[%clk
0:00:10.4]} 36... Nxe1 {[%clk 0:00:21.9]} 37. Nf6+ {[%clk 0:00:11.7]} 37... Kg7
{[%clk 0:00:23]} 38. Nxd7 {[%clk 0:00:12.9]} 38... Rfd8 {[%clk 0:00:22.3]} 39.
Qb2+ {[%clk 0:00:13.8]} 39... Kg8 {[%clk 0:00:20.7]} 40. Qf6 {[%clk 0:00:14.8]}
40... Rxd7 {[%clk 0:00:20.4]} 41. Qxg6+ {[%clk 0:00:16.1]} 41... Kf8 {[%clk
0:00:20.6]} 42. Bxf7 {[%clk 0:00:17.1]} 42... Rxf7 {[%clk 0:00:21.2]} 43. Qh6+
{[%clk 0:00:17.4]} 43... Kg8 {[%clk 0:00:21.5]} 44. Rxe1 {[%clk 0:00:18]} 44...
Rcf8 {[%clk 0:00:22.4]} 45. Qg5+ {[%clk 0:00:16.9]} 45... Kh7 {[%clk 0:00:22.5]}
46. Re3 {[%clk 0:00:17.6]} 46... Rf3 {[%clk 0:00:09.9]} 47. Rxf3 {[%clk
0:00:18.5]} 1-0

[Event "*** Titled Tuesday 3|2 Blitz"]
[Site "Chess.com"]
[Date "2016.09.06"]
[Round "4"]
[White "PowerThinking2650"]
[Black "Journey_to_GrandMaster_YT"]
[Result "0-1"]
[WhiteElo "2160"]
[BlackElo "2356"]
[TimeControl "180+2"]
[EndTime "11:51:20 PDT"]
[Termination "Journey_to_GrandMaster_YT won by resignation"]

1. e4 {[%clk 0:03:01.9]} 1... d6 {[%clk 0:03:00.4]} 2. d4 {[%clk 0:03:01.9]}
2... Nf6 {[%clk 0:03:01.6]} 3. Nc3 {[%clk 0:03:02.7]} 3... e5 {[%clk 0:03:02.8]}
4. dxe5 {[%clk 0:03:02.5]} 4... dxe5 {[%clk 0:03:03.9]} 5. Qxd8+ {[%clk
0:03:02.9]} 5... Kxd8 {[%clk 0:03:05.8]} 6. Bg5 {[%clk 0:03:03.3]} 6... c6
{[%clk 0:03:06.6]} 7. O-O-O+ {[%clk 0:03:02.3]} 7... Ke8 {[%clk 0:03:07.4]} 8.
f4 {[%clk 0:03:01.7]} 8... Nbd7 {[%clk 0:03:06.8]} 9. Nf3 {[%clk 0:03:01]} 9...
Ng4 {[%clk 0:02:54.1]} 10. Nxe5 {[%clk 0:02:18.5]} 10... Nf2 {[%clk 0:02:39.6]}
11. Bc4 {[%clk 0:02:18.3]} 11... f6 {[%clk 0:02:40]} 12. Nf7 {[%clk 0:01:47.6]}
12... Nxd1 {[%clk 0:02:27.6]} 13. Rxd1 {[%clk 0:01:43.7]} 13... Rg8 {[%clk
0:02:27.2]} 14. Bh4 {[%clk 0:01:36.8]} 14... b5 {[%clk 0:02:26]} 15. Bb3 {[%clk
0:01:00.1]} 15... Nc5 {[%clk 0:02:20.5]} 16. Nd6+ {[%clk 0:00:53.5]} 16... Bxd6
{[%clk 0:02:19.4]} 17. Bxg8 {[%clk 0:00:45.4]} 17... Bxf4+ {[%clk 0:02:20]} 18.
Kb1 {[%clk 0:00:46]} 18... h6 {[%clk 0:02:02.3]} 19. Ne2 {[%clk 0:00:26.5]}
19... Be5 {[%clk 0:02:01.3]} 20. Bh7 {[%clk 0:00:22]} 20... Bg4 {[%clk
0:02:00.5]} 21. Bg6+ {[%clk 0:00:20.3]} 21... Ke7 {[%clk 0:02:01.4]} 22. Re1
{[%clk 0:00:21.1]} 22... Rd8 {[%clk 0:02:01.1]} 23. Nc3 {[%clk 0:00:21.4]} 23...
b4 {[%clk 0:01:58.5]} 24. Bf2 {[%clk 0:00:22.5]} 24... bxc3 {[%clk 0:01:34.7]}
25. Bxc5+ {[%clk 0:00:22.1]} 25... Ke6 {[%clk 0:01:34.2]} 26. h3 {[%clk
0:00:20.7]} 26... Rd1+ {[%clk 0:01:31.4]} 27. Rxd1 {[%clk 0:00:20.5]} 27... Bxd1
{[%clk 0:01:33.3]} 28. Bf5+ {[%clk 0:00:20.8]} 28... Kf7 {[%clk 0:01:34.3]} 29.
bxc3 {[%clk 0:00:21.5]} 29... Bxc3 {[%clk 0:01:30.5]} 30. Bxa7 {[%clk 0:00:22]}
30... Be2 {[%clk 0:01:27]} 31. Bg4 {[%clk 0:00:21.9]} 31... Bf1 {[%clk 0:01:26]}
32. Bf3 {[%clk 0:00:22.4]} 32... Ke6 {[%clk 0:01:25.8]} 33. a4 {[%clk
0:00:22.7]} 33... Ba5 {[%clk 0:01:25.1]} 34. Bb8 {[%clk 0:00:23.4]} 34... h5
{[%clk 0:01:20.3]} 35. Ka2 {[%clk 0:00:20.3]} 35... g5 {[%clk 0:01:20.1]} 36.
Kb3 {[%clk 0:00:21]} 36... Kd7 {[%clk 0:01:17.6]} 37. Bxh5 {[%clk 0:00:19.8]}
37... Bxg2 {[%clk 0:01:18]} 38. Bg4+ {[%clk 0:00:20.9]} 38... Ke7 {[%clk
0:01:18.8]} 39. Bg3 {[%clk 0:00:20.2]} 39... Bf1 {[%clk 0:01:18.7]} 40. Bf2
{[%clk 0:00:20.9]} 40... Kd6 {[%clk 0:01:19]} 41. Bd4 {[%clk 0:00:21.2]} 41...
Bd8 {[%clk 0:01:11.3]} 42. Bc3 {[%clk 0:00:21.4]} 42... Bg2 {[%clk 0:01:11.3]}
43. Bb4+ {[%clk 0:00:22.3]} 43... Ke5 {[%clk 0:01:10.4]} 44. a5 {[%clk 0:00:23]}
44... Bxe4 {[%clk 0:01:08]} 45. a6 {[%clk 0:00:22.7]} 45... f5 {[%clk
0:00:54.6]} 46. a7 {[%clk 0:00:21.1]} 46... c5 {[%clk 0:00:55.4]} 47. Bc3+
{[%clk 0:00:21.4]} 47... Ke6 {[%clk 0:00:45.5]} 48. Be2 {[%clk 0:00:15.5]} 48...
Bb6 {[%clk 0:00:46.3]} 49. Bc4+ {[%clk 0:00:15.2]} 49... Ke7 {[%clk 0:00:46.9]}
50. Bd3 {[%clk 0:00:15.3]} 50... Bxa7 {[%clk 0:00:46.7]} 51. Bxe4 {[%clk
0:00:16.2]} 51... fxe4 {[%clk 0:00:47.9]} 52. Kc4 {[%clk 0:00:17.4]} 52... Ke6
{[%clk 0:00:48.5]} 53. Bg7 {[%clk 0:00:17]} 53... Kf5 {[%clk 0:00:45.4]} 54. Bf8
{[%clk 0:00:17.6]} 54... Kf4 {[%clk 0:00:44.9]} 0-1

[Event "*** Titled Tuesday 3|2 Blitz"]
[Site "Chess.com"]
[Date "2016.09.06"]
[Round "4"]
[White "severomorskij"]
[Black "tigra"]
[Result "1-0"]
[WhiteElo "2603"]
[BlackElo "2448"]
[TimeControl "180+2"]
[EndTime "11:51:36 PDT"]
[Termination "severomorskij won by resignation"]

1. d4 {[%clk 0:03:01.9]} 1... Nf6 {[%clk 0:03:00]} 2. c4 {[%clk 0:03:01.8]} 2...
g6 {[%clk 0:03:00.3]} 3. Nc3 {[%clk 0:03:02.4]} 3... d5 {[%clk 0:03:01]} 4. cxd5
{[%clk 0:03:02.2]} 4... Nxd5 {[%clk 0:03:02.9]} 5. e4 {[%clk 0:03:03.8]} 5...
Nxc3 {[%clk 0:03:03.9]} 6. bxc3 {[%clk 0:03:05.4]} 6... Bg7 {[%clk 0:03:05.8]}
7. Qa4+ {[%clk 0:03:06.3]} 7... Qd7 {[%clk 0:03:05.3]} 8. Qa3 {[%clk 0:03:06.8]}
8... O-O {[%clk 0:03:04.2]} 9. Bd3 {[%clk 0:03:05.5]} 9... b6 {[%clk 0:03:04.1]}
10. Nf3 {[%clk 0:03:06.2]} 10... c5 {[%clk 0:03:04.6]} 11. O-O {[%clk
0:03:06.8]} 11... Nc6 {[%clk 0:02:51.3]} 12. Bb5 {[%clk 0:03:05]} 12... Qc7
{[%clk 0:02:47.6]} 13. Bb2 {[%clk 0:02:47.4]} 13... Bg4 {[%clk 0:02:45.1]} 14.
Bxc6 {[%clk 0:02:30.3]} 14... Qxc6 {[%clk 0:02:44.2]} 15. d5 {[%clk 0:02:27]}
15... Qf6 {[%clk 0:02:30.3]} 16. Nd2 {[%clk 0:02:21.3]} 16... Qf4 {[%clk
0:02:26.4]} 17. Bc1 {[%clk 0:02:04.4]} 17... Qe5 {[%clk 0:01:27.7]} 18. Bb2
{[%clk 0:01:31.9]} 18... Qg5 {[%clk 0:01:25.1]} 19. f4 {[%clk 0:01:25.8]} 19...
Qh5 {[%clk 0:01:19]} 20. c4 {[%clk 0:01:24.5]} 20... e5 {[%clk 0:01:17.9]} 21.
Qc3 {[%clk 0:00:59.3]} 21... Qh6 {[%clk 0:00:40.5]} 22. h3 {[%clk 0:00:44.5]}
22... Bd7 {[%clk 0:00:29.9]} 23. fxe5 {[%clk 0:00:44.6]} 23... Rae8 {[%clk
0:00:27.7]} 24. Nf3 {[%clk 0:00:45.3]} 24... g5 {[%clk 0:00:17.1]} 25. Qe3
{[%clk 0:00:41.1]} 25... g4 {[%clk 0:00:17]} 26. Qxh6 {[%clk 0:00:41.7]} 26...
Bxh6 {[%clk 0:00:18.9]} 27. hxg4 {[%clk 0:00:40.7]} 27... Bxg4 {[%clk
0:00:20.6]} 28. Kf2 {[%clk 0:00:31.4]} 28... Bf4 {[%clk 0:00:20.6]} 29. Rh1
{[%clk 0:00:29.1]} 29... Bxf3 {[%clk 0:00:19.5]} 30. gxf3 {[%clk 0:00:29.6]}
30... Bxe5 {[%clk 0:00:20.4]} 31. Rag1+ {[%clk 0:00:30.3]} 31... Kh8 {[%clk
0:00:21.1]} 32. Bxe5+ {[%clk 0:00:30.1]} 32... Rxe5 {[%clk 0:00:23]} 33. Rh6
{[%clk 0:00:25.1]} 33... f5 {[%clk 0:00:23.6]} 34. Rh5 {[%clk 0:00:22.5]} 34...
Re7 {[%clk 0:00:23.3]} 35. Rxf5 {[%clk 0:00:22]} 35... Rxf5 {[%clk 0:00:23.8]}
36. exf5 {[%clk 0:00:23.9]} 36... Rg7 {[%clk 0:00:22.5]} 37. Rh1 {[%clk
0:00:13.5]} 37... Kg8 {[%clk 0:00:22.7]} 38. Ke3 {[%clk 0:00:13.9]} 38... Kf7
{[%clk 0:00:23.2]} 39. Kf4 {[%clk 0:00:14.8]} 39... Kg8 {[%clk 0:00:23.3]} 40.
Ke5 {[%clk 0:00:15.4]} 40... Kf8 {[%clk 0:00:24.1]} 41. d6 {[%clk 0:00:15.5]}
41... Ke8 {[%clk 0:00:25.1]} 42. Ke6 {[%clk 0:00:16.6]} 42... Rg2 {[%clk
0:00:21.3]} 43. Rxh7 {[%clk 0:00:15.8]} 43... Re2+ {[%clk 0:00:21.9]} 44. Kd5
{[%clk 0:00:16.8]} 44... Rxa2 {[%clk 0:00:23.8]} 45. Kc6 {[%clk 0:00:16.7]}
45... a5 {[%clk 0:00:21.3]} 46. d7+ {[%clk 0:00:17.2]} 1-0

[Event "*** Titled Tuesday 3|2 Blitz"]
[Site "Chess.com"]
[Date "2016.09.06"]
[Round "4"]
[White "macko06"]
[Black "alturas_pacificas"]
[Result "0-1"]
[WhiteElo "2181"]
[BlackElo "2154"]
[TimeControl "180+2"]
[EndTime "11:51:41 PDT"]
[Termination "alturas_pacificas won on time"]

1. d4 {[%clk 0:03:02]} 1... d5 {[%clk 0:03:00.6]} 2. c4 {[%clk 0:02:57.3]} 2...
c6 {[%clk 0:03:01.8]} 3. Nf3 {[%clk 0:02:57.2]} 3... Nf6 {[%clk 0:03:02.6]} 4.
Nc3 {[%clk 0:02:57]} 4... e6 {[%clk 0:03:03.9]} 5. Bg5 {[%clk 0:02:57.2]} 5...
dxc4 {[%clk 0:03:05]} 6. e4 {[%clk 0:02:57.2]} 6... b5 {[%clk 0:03:06.3]} 7. e5
{[%clk 0:02:57]} 7... h6 {[%clk 0:03:07.4]} 8. Bh4 {[%clk 0:02:58.1]} 8... g5
{[%clk 0:03:08.8]} 9. Nxg5 {[%clk 0:02:59]} 9... Nd5 {[%clk 0:03:05.8]} 10. Nf3
{[%clk 0:02:52.2]} 10... Qa5 {[%clk 0:03:03.3]} 11. Qd2 {[%clk 0:02:42.2]} 11...
Bb4 {[%clk 0:03:00.9]} 12. Rc1 {[%clk 0:02:41.1]} 12... c5 {[%clk 0:02:52.9]}
13. dxc5 {[%clk 0:02:34.2]} 13... Nd7 {[%clk 0:02:49.3]} 14. c6 {[%clk
0:02:25.1]} 14... Nc5 {[%clk 0:02:50.1]} 15. Qc2 {[%clk 0:02:03]} 15... Na4
{[%clk 0:02:13.7]} 16. a3 {[%clk 0:01:50.6]} 16... Bxc3+ {[%clk 0:02:06.3]} 17.
bxc3 {[%clk 0:01:51.6]} 17... Naxc3 {[%clk 0:02:06.7]} 18. Qd2 {[%clk
0:01:45.7]} 18... Qxa3 {[%clk 0:02:05.4]} 19. Be2 {[%clk 0:01:22.6]} 19... Nxe2
{[%clk 0:01:49.6]} 20. Kxe2 {[%clk 0:01:24.5]} 20... c3 {[%clk 0:01:37.9]} 21.
Qd4 {[%clk 0:01:05.9]} 21... b4 {[%clk 0:01:18.9]} 22. Rhd1 {[%clk 0:00:58.4]}
22... Ba6+ {[%clk 0:01:12.2]} 23. Ke1 {[%clk 0:00:57.2]} 23... Qa2 {[%clk
0:01:03.5]} 24. Qe4 {[%clk 0:00:40.9]} 24... Nf4 {[%clk 0:00:42.6]} 25. Nd4
{[%clk 0:00:29.8]} 25... Nd5 {[%clk 0:00:17.6]} 26. Ra1 {[%clk 0:00:29.3]} 26...
Qc4 {[%clk 0:00:17.1]} 27. Rxa6 {[%clk 0:00:10.3]} 27... Qxa6 {[%clk 0:00:15.1]}
28. Nf5 {[%clk 0:00:11.3]} 28... Qxc6 {[%clk 0:00:13.7]} 29. Nd6+ {[%clk
0:00:11.7]} 29... Kd7 {[%clk 0:00:12.2]} 30. Qf3 {[%clk 0:00:08.1]} 30... f5
{[%clk 0:00:12.8]} 31. Qg3 {[%clk 0:00:07.4]} 31... Rhg8 {[%clk 0:00:13.4]} 32.
Qf3 {[%clk 0:00:07.4]} 32... c2 {[%clk 0:00:13.8]} 33. Rc1 {[%clk 0:00:08.2]}
33... Rg4 {[%clk 0:00:12]} 34. g3 {[%clk 0:00:05]} 34... a5 {[%clk 0:00:10.7]}
35. h3 {[%clk 0:00:06]} 35... Rd4 {[%clk 0:00:10.4]} 36. Qh5 {[%clk 0:00:06]}
36... Kc7 {[%clk 0:00:08.3]} 37. Qf7+ {[%clk 0:00:06.3]} 37... Kb6 {[%clk
0:00:09.9]} 38. Qxe6 {[%clk 0:00:03.6]} 38... Qc3+ {[%clk 0:00:09.3]} 39. Ke2
{[%clk 0:00:03.2]} 39... Rd2+ {[%clk 0:00:10.1]} 40. Kf1 {[%clk 0:00:04.7]}
40... Rd1+ {[%clk 0:00:11.7]} 41. Kg2 {[%clk 0:00:06]} 41... Qc6 {[%clk
0:00:08.8]} 42. Rxc2 {[%clk 0:00:03.8]} 42... Ne3+ {[%clk 0:00:06.8]} 0-1